bitfinex/quotes_BTCUSD_20250711
["timestamp","ask_amount","ask_price","bid_price","bid_amount"]
[1752219182247,0.344,117760.0,117750.0,0.06958537]
[1752219183520,0.344,117760.0,117750.0,0.05374]
[1752219184351,0.344,117760.0,117750.0,0.18586]
[1752219184544,0.77393335,117760.0,117750.0,0.18586]
[1752219186548,0.004,117760.0,117750.0,0.18586]
[1752219186746,0.004,117760.0,117750.0,0.27128993]
[1752219187778,0.003,117760.0,117750.0,0.27128993]
[1752219188805,0.003,117760.0,117750.0,0.26812362]
[1752219189220,0.76993335,117770.0,117750.0,0.26812362]
[1752219189432,0.76993335,117770.0,117760.0,0.024]
[1752219189643,0.76993335,117770.0,117760.0,0.02904]
[1752219190631,0.77193335,117770.0,117760.0,0.02904]
[1752219191494,0.342,117770.0,117760.0,0.02904]
[1752219191704,0.77193335,117770.0,117760.0,0.02904]
[1752219191915,0.77193335,117770.0,117760.0,0.05114]
[1752219193491,0.77293335,117770.0,117760.0,0.05114]
[1752219194151,0.77491335,117770.0,117760.0,0.05114]
[1752219194355,0.77491335,117770.0,117750.0,0.00308]
[1752219194561,0.42993335,117760.0,117750.0,0.05008]
[1752219194767,1.32002043,117760.0,117740.0,0.93438257]
[1752219194969,0.8598667,117750.0,117740.0,0.88430257]
[1752219195173,0.43190335,117750.0,117740.0,1.01638257]
[1752219195379,0.42993335,117750.0,117740.0,1.04422257]
[1752219195588,0.42993335,117750.0,117740.0,1.06692257]
[1752219195792,0.53208,117780.0,117760.0,0.0455]
[1752219196007,0.42993335,117770.0,117760.0,0.31274]
[1752219196220,0.42993335,117770.0,117760.0,0.3147]
[1752219196836,0.76993335,117770.0,117760.0,0.3147]
[1752219197443,0.77193335,117770.0,117760.0,0.3147]
[1752219198712,0.77293335,117770.0,117760.0,0.3147]
[1752219199139,0.77490335,117770.0,117760.0,0.3147]
[1752219199337,0.77490335,117770.0,117760.0,0.31162]
[1752219199633,0.77490335,117770.0,117760.0,0.30966]
[1752219199941,0.77490335,117770.0,117760.0,0.26416]
[1752219200894,0.78521198,117770.0,117760.0,0.26416]
[1752219202416,0.78521198,117770.0,117750.0,0.05023]
[1752219202592,0.88048396,117760.0,117750.0,0.05023]
[1752219202791,0.88048396,117760.0,117750.0,0.18417]
[1752219203204,1.22246396,117760.0,117750.0,0.1812]
[1752219204010,1.22246396,117760.0,117750.0,0.18413]
[1752219205040,1.22246396,117760.0,117750.0,0.18112]
[1752219205257,1.22246396,117760.0,117750.0,0.13382]
[1752219205724,1.22246396,117760.0,117750.0,0.13675]
[1752219205953,1.22246396,117760.0,117750.0,0.15965]
[1752219206400,1.22246396,117760.0,117750.0,0.13675]
[1752219206622,1.22246396,117760.0,117750.0,0.13382]
[1752219206856,0.34,117750.0,117740.0,0.93293257]
[1752219207066,0.77029921,117750.0,117740.0,1.06671257]
[1752219207950,0.1318,117760.0,117740.0,1.06671257]
[1752219208159,0.44024198,117750.0,117740.0,1.06671257]
[1752219208602,0.44024198,117750.0,117740.0,1.06771257]
[1752219209027,0.78024198,117750.0,117740.0,1.06771257]
[1752219209249,0.44024198,117750.0,117740.0,1.06771257]
[1752219212793,0.44024198,117750.0,117740.0,0.93591257]
[1752219212993,0.44024198,117750.0,117740.0,1.06771257]
[1752219213445,0.44024198,117760.0,117740.0,1.1074425]
[1752219213746,0.44024198,117760.0,117750.0,0.04813]
[1752219213959,0.44024198,117760.0,117750.0,0.06599594]
[1752219214883,0.34,117770.0,117760.0,0.0465]
[1752219215095,0.78222198,117770.0,117760.0,0.19616594]
[1752219215276,0.78222198,117770.0,117760.0,0.19909594]
[1752219217163,0.78322198,117770.0,117760.0,0.19909594]
[1752219217825,0.78522198,117770.0,117760.0,0.19909594]
[1752219218692,0.77504137,117770.0,117760.0,0.19909594]
[1752219219217,0.33479939,117770.0,117760.0,0.19909594]
[1752219219431,0.77504137,117770.0,117760.0,0.19909594]
[1752219220426,0.77504137,117770.0,117760.0,0.19616594]
[1752219220839,0.77504137,117770.0,117760.0,0.19909594]
[1752219224866,0.003,117770.0,117760.0,0.28452587]
[1752219225017,0.465728,117800.0,117790.0,0.0226]
[1752219225408,0.44222198,117800.0,117790.0,0.32731594]
[1752219225580,0.44222198,117800.0,117790.0,0.28241594]
[1752219225784,0.88246396,117800.0,117790.0,0.27948594]
[1752219226022,0.88246396,117800.0,117790.0,0.34948594]
[1752219226393,0.80788991,117800.0,117790.0,0.34948594]
[1752219226625,0.90813189,117800.0,117790.0,0.37288594]
[1752219226833,1.24813189,117800.0,117790.0,0.37583594]
[1752219227390,1.24813189,117800.0,117790.0,0.39823594]
[1752219228437,1.24813189,117800.0,117790.0,0.37483594]
[1752219229016,1.24813189,117800.0,117790.0,0.39703594]
[1752219230218,1.24913189,117800.0,117790.0,0.39703594]
[1752219230874,1.24913189,117800.0,117790.0,0.39915594]
[1752219232414,1.24913189,117800.0,117790.0,0.39408594]
[1752219232673,0.80690991,117800.0,117790.0,0.39915594]
[1752219232882,0.36666793,117800.0,117790.0,0.39915594]
[1752219233074,0.02666793,117800.0,117790.0,0.39915594]
[1752219233401,0.46690991,117800.0,117790.0,0.39915594]
[1752219233612,0.46590991,117800.0,117790.0,0.39915594]
[1752219234856,0.02566793,117800.0,117790.0,0.39915594]
[1752219235058,0.46590991,117800.0,117790.0,0.39915594]
[1752219235197,0.44024198,117800.0,117790.0,0.39915594]
[1752219235630,0.43006398,117800.0,117790.0,0.39915594]
[1752219236028,0.43006398,117800.0,117790.0,0.48558587]
[1752219236288,0.44024198,117810.0,117800.0,0.0462]
[1752219236482,0.44024198,117810.0,117800.0,0.33067594]
[1752219236707,0.01548611,117810.0,117800.0,0.41610587]
[1752219236895,0.00194,117850.0,117800.0,0.36990587]
[1752219237102,0.44024198,117820.0,117810.0,0.09050199]
[1752219237347,0.025952,117860.0,117810.0,0.37202793]
[1752219237548,0.44024198,117830.0,117820.0,0.04895]
[1752219237752,0.44024198,117830.0,117820.0,0.15238587]
[1752219238610,0.44024198,117830.0,117820.0,0.15450775]
[1752219238813,0.44024198,117830.0,117820.0,0.15720775]
[1752219239394,0.44024198,117830.0,117820.0,0.15920775]
[1752219239686,0.01592538,117840.0,117820.0,0.11250775]
[1752219239919,0.01592538,117840.0,117830.0,0.39640993]
[1752219240121,0.0005,117860.0,117830.0,0.41736587]
[1752219240272,0.01504085,117860.0,117830.0,0.41736587]
[1752219240446,0.04108085,117860.0,117830.0,0.33193594]
[1752219240645,0.00198,117840.0,117830.0,0.27936594]
[1752219241043,1.22246396,117840.0,117830.0,0.27925284]
[1752219241655,1.2383515,117840.0,117830.0,0.28025284]
[1752219242267,1.2383515,117840.0,117830.0,0.27925284]
[1752219242675,1.2383515,117840.0,117830.0,0.28025284]
[1752219243269,1.2383515,117840.0,117830.0,0.28125284]
[1752219244451,1.25482235,117840.0,117830.0,0.14949284]
[1752219246295,1.24464759,117840.0,117830.0,0.14949284]
[1752219246494,1.2363715,117840.0,117830.0,0.19786284]
[1752219247199,1.2363715,117840.0,117830.0,0.06614284]
[1752219247372,1.2363715,117840.0,117830.0,0.19782284]
[1752219247605,1.2363715,117840.0,117830.0,0.06614284]
[1752219247803,1.2363715,117840.0,117830.0,0.14945284]
[1752219248012,1.2363715,117840.0,117830.0,0.01777284]
[1752219248221,1.2363715,117840.0,117830.0,0.14945284]
[1752219248222,1.3680515,117840.0,117830.0,0.14945284]
[1752219249225,1.3680515,117840.0,117830.0,0.14943672]
[1752219251134,1.3680515,117840.0,117830.0,0.14843672]
[1752219251503,1.3680515,117840.0,117830.0,0.14743672]
[1752219251941,1.38259235,117840.0,117830.0,0.14743672]
[1752219256010,0.35588754,117840.0,117830.0,0.06322672]
[1752219256226,0.78595502,117840.0,117830.0,0.06322672]
[1752219256430,0.77578119,117840.0,117830.0,0.06322672]
[1752219256648,1.21602317,117840.0,117830.0,0.06322672]
[1752219257468,0.33553921,117840.0,117830.0,0.06322672]
[1752219257673,1.21602317,117840.0,117830.0,0.06322672]
[1752219259557,0.77578119,117840.0,117830.0,0.06322672]
[1752219259764,1.21602317,117840.0,117830.0,0.06322672]
[1752219260092,0.77578119,117840.0,117830.0,0.06322672]
[1752219260603,0.77578119,117840.0,117830.0,0.06326353]
[1752219260923,1.21602317,117840.0,117830.0,0.06326353]
[1752219261480,0.33553921,117840.0,117830.0,0.06326353]
[1752219261721,1.21602317,117840.0,117830.0,0.06326353]
[1752219262955,0.33553921,117840.0,117830.0,0.06326353]
[1752219263094,1.21602317,117840.0,117830.0,0.06326353]
[1752219266261,1.19567485,117840.0,117830.0,0.06326353]
[1752219269919,1.19567485,117840.0,117830.0,0.19490353]
[1752219272062,1.19567485,117840.0,117830.0,0.19496857]
[1752219274609,1.19567485,117840.0,117830.0,0.06332857]
[1752219274844,1.19567485,117840.0,117830.0,0.19496857]
[1752219275021,1.19567485,117840.0,117830.0,0.06120663]
[1752219275201,1.19567485,117840.0,117830.0,0.16829663]
[1752219275398,1.19567485,117840.0,117830.0,0.19349663]
[1752219275693,1.19567485,117840.0,117830.0,0.19564663]
[1752219275855,1.19567485,117840.0,117830.0,0.06400663]
[1752219276065,1.2552157,117840.0,117830.0,0.01585663]
[1752219276267,1.3868157,117840.0,117830.0,0.01585663]
[1752219276470,1.3544406,117840.0,117830.0,0.01585663]
[1752219276829,1.3316406,117840.0,117830.0,0.01585663]
[1752219277933,1.04251235,117840.0,117830.0,0.01585785]
[1752219278142,1.08561235,117840.0,117830.0,0.01585785]
[1752219278344,1.42561235,117840.0,117830.0,0.01585785]
[1752219279665,1.37944228,117840.0,117830.0,0.01585785]
[1752219279913,1.95128426,117840.0,117830.0,0.01585785]
[1752219280094,0.63055832,117840.0,117830.0,0.0073787]
[1752219280296,1.97674226,117840.0,117830.0,0.0073787]
[1752219280799,1.53650028,117840.0,117830.0,0.0073787]
[1752219281616,1.53750028,117840.0,117830.0,0.0073787]
[1752219282287,1.40490028,117840.0,117830.0,0.0073787]
[1752219282488,1.51530028,117840.0,117830.0,0.0073787]
[1752219282660,0.9228295,117840.0,117830.0,0.0073787]
[1752219282989,1.04351235,117840.0,117830.0,0.0073787]
[1752219283191,1.0289715,117840.0,117830.0,0.0073787]
[1752219283429,1.04351235,117840.0,117830.0,0.0073787]
[1752219284043,1.38351235,117840.0,117830.0,0.0073787]
[1752219285231,1.38551235,117840.0,117830.0,0.0073787]
[1752219288073,1.38551235,117840.0,117830.0,0.0773787]
[1752219288274,1.47094228,117840.0,117830.0,0.0773787]
[1752219289025,1.47094228,117840.0,117830.0,0.0763787]
[1752219289723,1.51394228,117840.0,117830.0,0.07]
[1752219290590,1.53939928,117840.0,117830.0,0.07]
[1752219291805,1.97964126,117840.0,117830.0,0.07]
[1752219292011,1.53939928,117840.0,117830.0,0.07]
[1752219293449,1.97964126,117840.0,117830.0,0.07]
[1752219293610,1.53939928,117840.0,117830.0,0.07]
[1752219296946,1.97964126,117840.0,117830.0,0.07]
[1752219301002,1.99661226,117840.0,117830.0,0.07737728]
[1752219301434,1.98812669,117840.0,117830.0,0.06889688]
[1752219301632,1.97964126,117840.0,117830.0,0.06889688]
[1752219301828,2.37964126,117840.0,117830.0,0.06041648]
[1752219302116,2.37964126,117840.0,117830.0,0.01585768]
[1752219302286,2.37964126,117840.0,117830.0,0.00737728]
[1752219302623,0.35454085,117830.0,117810.0,0.04654]
[1752219302828,1.09747389,117820.0,117810.0,0.04654]
[1752219303032,1.09747389,117820.0,117810.0,0.04855]
[1752219304467,1.43747389,117820.0,117810.0,0.04654]
[1752219305038,1.43747389,117820.0,117810.0,0.0433]
[1752219305646,1.43747389,117820.0,117810.0,0.04654]
[1752219305887,1.43747389,117820.0,117810.0,0.04855]
[1752219306072,0.91180198,117820.0,117810.0,0.04855]
[1752219308733,1.35204396,117820.0,117810.0,0.04855]
[1752219310162,0.35454085,117810.0,117800.0,0.043]
[1752219310365,1.36658481,117810.0,117800.0,0.04825]
[1752219311384,1.36658481,117810.0,117800.0,0.05025]
[1752219314605,1.36658481,117810.0,117800.0,0.06609932]
[1752219315008,1.36654481,117810.0,117800.0,0.06609932]
[1752219317506,1.45197474,117810.0,117800.0,0.06408932]
[1752219317733,1.45197474,117810.0,117800.0,0.01784932]
[1752219317926,1.32045474,117810.0,117800.0,0.01784932]
[1752219318147,1.52113874,117810.0,117800.0,0.01784932]
[1752219318946,1.52113874,117810.0,117800.0,0.01684932]
[1752219319343,1.52113874,117810.0,117800.0,0.01584932]
[1752219320136,1.52213874,117810.0,117800.0,0.01584932]
[1752219320380,1.52313874,117810.0,117800.0,0.01584932]
[1752219320743,1.52213874,117810.0,117800.0,0.01584932]
[1752219321166,1.52113874,117810.0,117800.0,0.01584932]
[1752219322750,1.52213874,117810.0,117800.0,0.01584932]
[1752219323004,1.60756867,117810.0,117800.0,0.01584932]
[1752219323209,2.04781065,117810.0,117800.0,0.007368]
[1752219323357,2.04781065,117810.0,117770.0,0.0443]
[1752219323358,0.0453,117800.0,117770.0,0.0443]
[1752219323557,1.23502481,117780.0,117770.0,0.0443]
[1752219323771,1.41173276,117780.0,117770.0,0.04935]
[1752219323992,1.85197474,117780.0,117770.0,0.04935]
[1752219324476,1.45197474,117780.0,117770.0,0.05035]
[1752219324690,1.45197474,117780.0,117770.0,0.04935]
[1752219324910,1.32045474,117780.0,117770.0,0.04935]
[1752219325101,1.45197474,117780.0,117770.0,0.04935]
[1752219325310,0.88021276,117780.0,117770.0,0.04935]
[1752219325489,0.78024198,117780.0,117770.0,0.04935]
[1752219325689,0.34,117780.0,117770.0,0.04935]
[1752219325950,0.78024198,117780.0,117770.0,0.04935]
[1752219327446,0.79473761,117780.0,117770.0,0.04935]
[1752219328241,0.44024198,117780.0,117770.0,0.13477993]
[1752219328748,0.44024198,117790.0,117780.0,0.0427]
[1752219328952,0.44024198,117790.0,117780.0,0.0448226]
[1752219329131,0.44024198,117790.0,117780.0,0.13530253]
[1752219329451,0.44024198,117790.0,117780.0,0.13317993]
[1752219329651,0.45472043,117800.0,117780.0,0.09047993]
[1752219329817,0.01447845,117800.0,117790.0,0.39392993]
[1752219330180,0.78024198,117800.0,117790.0,0.39897993]
[1752219331514,0.78024198,117800.0,117790.0,0.39997993]
[1752219332719,0.78024198,117800.0,117790.0,0.39897993]
[1752219332938,0.78024198,117800.0,117790.0,0.39997993]
[1752219333689,0.34,117800.0,117790.0,0.39997993]
[1752219333895,0.78024198,117800.0,117790.0,0.39997993]
[1752219334180,0.44024198,117800.0,117790.0,0.39997993]
[1752219334507,0.44024198,117800.0,117790.0,0.13697993]
[1752219334729,0.88048396,117800.0,117790.0,0.26845993]
[1752219335002,0.44024198,117800.0,117790.0,0.26845993]
[1752219335172,0.44024198,117800.0,117790.0,0.27045993]
[1752219335507,0.44024198,117800.0,117790.0,0.28631557]
[1752219335654,0.42646057,117800.0,117790.0,0.28431557]
[1752219336041,0.42646057,117800.0,117790.0,0.28631557]
[1752219336466,0.42646057,117800.0,117790.0,0.28631219]
[1752219336667,0.44024198,117810.0,117800.0,0.0426]
[1752219336870,0.44024198,117810.0,117800.0,0.14593219]
[1752219337046,0.44024198,117810.0,117800.0,0.14893219]
[1752219338257,0.44024198,117810.0,117800.0,0.28137219]
[1752219338985,0.44024198,117810.0,117800.0,0.14993219]
[1752219339153,0.44024198,117810.0,117800.0,0.28137219]
[1752219339359,0.88048396,117810.0,117800.0,0.19593698]
[1752219339786,0.44024198,117810.0,117800.0,0.19593698]
[1752219340555,0.88048396,117810.0,117800.0,0.19593698]
[1752219341833,1.23502481,117810.0,117800.0,0.19593698]
[1752219342071,1.23502481,117810.0,117800.0,0.04865]
[1752219342225,1.23502481,117810.0,117800.0,0.19589333]
[1752219348083,1.36642481,117810.0,117800.0,0.19589333]
[1752219348252,1.36642481,117810.0,117800.0,0.01684333]
[1752219348451,1.36642481,117810.0,117800.0,0.14824333]
[1752219348668,1.36642481,117810.0,117800.0,0.19478333]
[1752219349215,1.36642481,117810.0,117800.0,0.19378333]
[1752219349667,1.36642481,117810.0,117800.0,0.19586333]
[1752219349859,1.36642481,117810.0,117800.0,0.19378333]
[1752219350038,1.49685474,117810.0,117800.0,0.01584333]
[1752219351459,1.49785474,117810.0,117800.0,0.01584333]
[1752219352690,1.52331674,117810.0,117800.0,0.01584333]
[1752219355395,1.34691674,117810.0,117800.0,0.01584333]
[1752219355572,0.95260483,117810.0,117800.0,0.06356333]
[1752219355778,0.46670398,117810.0,117800.0,0.06356333]
[1752219355944,0.78124198,117810.0,117800.0,0.06356333]
[1752219356152,0.44124198,117810.0,117800.0,0.06356333]
[1752219356405,0.78124198,117810.0,117800.0,0.06356333]
[1752219356804,1.22148396,117810.0,117800.0,0.19492333]
[1752219357362,1.22048396,117810.0,117800.0,0.19492333]
[1752219357960,1.23502481,117810.0,117800.0,0.06356333]
[1752219358202,0.79478283,117810.0,117800.0,0.06356333]
[1752219358555,0.79478283,117810.0,117800.0,0.06456333]
[1752219359163,0.78024198,117810.0,117800.0,0.06356333]
[1752219360838,0.78024198,117810.0,117800.0,0.06456333]
[1752219361357,0.76646152,117810.0,117800.0,0.06456333]
[1752219363950,0.76646152,117810.0,117800.0,0.04872]
[1752219365381,0.76646152,117810.0,117800.0,0.06456603]
[1752219365997,0.76646152,117810.0,117800.0,0.19588603]
[1752219367774,0.76646152,117810.0,117800.0,0.19588399]
[1752219368663,0.76646152,117810.0,117800.0,0.28131392]
[1752219369179,0.01463045,117820.0,117800.0,0.27851392]
[1752219369398,0.01463045,117820.0,117810.0,0.12522993]
[1752219369629,0.57152198,117840.0,117820.0,0.0398]
[1752219369824,0.01336625,117820.0,117810.0,0.08542993]
[1752219370058,0.34,117830.0,117810.0,0.36595178]
[1752219370271,0.34,117830.0,117820.0,0.0398]
[1752219370404,0.34,117830.0,117820.0,0.05564185]
[1752219370837,0.78024198,117830.0,117820.0,0.06076185]
[1752219371865,0.78124198,117830.0,117820.0,0.06076185]
[1752219373657,0.79426389,117830.0,117820.0,0.06076185]
[1752219376898,0.35402191,117830.0,117820.0,0.06076185]
[1752219377100,0.79426389,117830.0,117820.0,0.06076185]
[1752219379320,0.79426389,117830.0,117820.0,0.06074673]
[1752219380334,0.79326389,117830.0,117820.0,0.06074673]
[1752219381047,0.79326389,117830.0,117820.0,0.06286798]
[1752219382434,0.79326389,117830.0,117820.0,0.06386798]
[1752219383134,0.78024198,117830.0,117820.0,0.14929791]
[1752219385552,0.78024198,117830.0,117820.0,0.14717603]
[1752219386900,0.78024198,117830.0,117820.0,0.27837603]
[1752219387094,0.78024198,117830.0,117820.0,0.1929461]
[1752219389522,0.78024198,117830.0,117820.0,0.19296416]
[1752219390636,0.78024198,117830.0,117820.0,0.19292416]
[1752219392658,0.34,117830.0,117820.0,0.19292416]
[1752219392857,0.78024198,117830.0,117820.0,0.19292416]
[1752219394836,0.78024198,117830.0,117820.0,0.06176416]
[1752219395038,0.78024198,117830.0,117820.0,0.19292416]
[1752219396479,0.78024198,117830.0,117820.0,0.05664416]
[1752219396657,0.78024198,117830.0,117820.0,0.18780416]
[1752219397271,0.78024198,117830.0,117820.0,0.16780416]
[1752219397471,0.78024198,117830.0,117820.0,0.19101416]
[1752219398353,0.78024198,117830.0,117820.0,0.14800416]
[1752219398942,0.78024198,117830.0,117820.0,0.16820416]
[1752219399334,0.78024198,117830.0,117820.0,0.18800416]
[1752219399780,0.78024198,117830.0,117820.0,0.19101416]
[1752219401680,0.78024198,117830.0,117820.0,0.18800416]
[1752219401912,0.78024198,117830.0,117820.0,0.14800416]
[1752219402702,0.78024198,117830.0,117820.0,0.18920416]
[1752219404021,0.34,117830.0,117820.0,0.19221416]
[1752219404278,0.78024198,117830.0,117820.0,0.19221416]
[1752219405124,0.78024198,117830.0,117820.0,0.19217416]
[1752219405303,0.78024198,117830.0,117820.0,0.19416416]
[1752219406571,0.78024198,117830.0,117820.0,0.19417719]
[1752219407910,0.78024198,117830.0,117820.0,0.27960712]
[1752219408258,0.76646372,117830.0,117820.0,0.27960712]
[1752219408491,0.44024198,117830.0,117820.0,0.27960712]
[1752219412445,0.43006784,117830.0,117820.0,0.27960712]
[1752219415078,0.43006784,117830.0,117820.0,0.26374993]
[1752219415255,0.43006784,117830.0,117820.0,0.27959664]
[1752219418493,0.44024198,117830.0,117820.0,0.06304671]
[1752219418703,0.44024198,117830.0,117820.0,0.19408671]
[1752219420508,0.44024198,117830.0,117820.0,0.19408359]
[1752219420744,0.44024198,117830.0,117820.0,0.194084]
[1752219420989,0.44024198,117830.0,117820.0,0.063044]
[1752219421237,0.44024198,117830.0,117820.0,0.194084]
[1752219422391,0.78024198,117830.0,117820.0,0.172194]
[1752219422594,0.78024198,117830.0,117820.0,0.192194]
[1752219422803,0.78024198,117830.0,117820.0,0.194264]
[1752219423673,0.78024198,117830.0,117820.0,0.147884]
[1752219423900,0.78024198,117830.0,117820.0,0.169894]
[1752219424118,0.78024198,117830.0,117820.0,0.190864]
[1752219424342,0.78024198,117830.0,117820.0,0.059824]
[1752219424604,0.78024198,117830.0,117820.0,0.190824]
[1752219426172,0.78024198,117830.0,117820.0,0.059824]
[1752219426390,0.78024198,117830.0,117820.0,0.190824]
[1752219429708,0.78024198,117830.0,117820.0,0.27625393]
[1752219429871,0.01283191,117840.0,117830.0,0.0402]
[1752219430080,0.44074198,117860.0,117840.0,0.0402]
[1752219430272,0.44074198,117860.0,117850.0,0.17327]
[1752219430540,0.44074198,117860.0,117850.0,0.192224]
[1752219430918,0.78074198,117860.0,117850.0,0.192224]
[1752219431518,0.78074198,117860.0,117850.0,0.19221002]
[1752219431735,0.78074198,117860.0,117850.0,0.06121002]
[1752219432073,0.78074198,117860.0,117850.0,0.19221002]
[1752219432203,0.78074198,117860.0,117850.0,0.19217002]
[1752219432410,0.79276337,117860.0,117850.0,0.19217002]
[1752219433204,0.79276337,117860.0,117850.0,0.19417002]
[1752219434121,0.79276337,117860.0,117850.0,0.17834]
[1752219434322,0.79276337,117860.0,117850.0,0.19416735]
[1752219435856,0.79276337,117860.0,117850.0,0.06320735]
[1752219436087,0.79276337,117860.0,117850.0,0.19416735]
[1752219436638,0.79276337,117860.0,117850.0,0.06113735]
[1752219436839,0.79276337,117860.0,117850.0,0.19209735]
[1752219437044,0.79276337,117860.0,117850.0,0.19209522]
[1752219437450,0.7825904,117860.0,117850.0,0.19209522]
[1752219439915,0.7825904,117860.0,117850.0,0.19409522]
[1752219442088,0.7825904,117860.0,117850.0,0.27952515]
[1752219442089,0.4425904,117860.0,117850.0,0.27952515]
[1752219442313,0.43056901,117860.0,117850.0,0.27952515]
[1752219442713,0.0002,117870.0,117860.0,0.0402]
[1752219442930,0.44044198,117870.0,117860.0,0.14345515]
[1752219443130,0.78044198,117870.0,117860.0,0.14659515]
[1752219443360,0.3402,117870.0,117860.0,0.14659515]
[1752219443485,0.76666832,117870.0,117860.0,0.14659515]
[1752219443685,0.77899245,117870.0,117860.0,0.14659515]
[1752219444301,0.00026,117890.0,117870.0,0.0388]
[1752219444594,0.00026,117890.0,117880.0,0.45800772]
[1752219444825,0.0002,117910.0,117890.0,0.44024198]
[1752219444990,0.0002,117920.0,117910.0,0.0388]
[1752219445190,0.44044198,117920.0,117910.0,0.0565921]
[1752219445348,0.44044198,117920.0,117910.0,0.0597321]
[1752219446208,0.43051329,117920.0,117910.0,0.06564244]
[1752219446418,0.0002,117930.0,117920.0,0.0393]
[1752219446588,0.44044198,117930.0,117920.0,0.19388244]
[1752219446786,0.44044198,117930.0,117920.0,0.06614244]
[1752219446996,0.44044198,117930.0,117920.0,0.19702244]
[1752219447596,0.44044198,117930.0,117920.0,0.19902244]
[1752219449319,0.01253784,117950.0,117940.0,0.0199]
[1752219449520,0.45277982,117950.0,117940.0,0.19414244]
[1752219449874,0.0002,117950.0,117940.0,0.28271237]
[1752219450069,0.44044198,117950.0,117940.0,0.28271237]
[1752219450474,0.44044198,117950.0,117940.0,0.28471237]
[1752219450685,0.0002,117950.0,117940.0,0.28471237]
[1752219450875,0.44044198,117950.0,117940.0,0.28371237]
[1752219452163,0.44044198,117950.0,117940.0,0.28571237]
[1752219452585,0.44044198,117950.0,117940.0,0.28771237]
[1752219453301,0.43250096,117950.0,117940.0,0.28771237]
[1752219453430,0.44024198,117950.0,117940.0,0.24811237]
[1752219453643,0.44024198,117950.0,117940.0,0.11727237]
[1752219453856,0.44024198,117950.0,117940.0,0.24807237]
[1752219454073,0.44024198,117950.0,117940.0,0.28737237]
[1752219454487,0.43007696,117950.0,117940.0,0.28737237]
[1752219454644,0.43007696,117950.0,117940.0,0.28724303]
[1752219454839,0.77212696,117950.0,117940.0,0.15130303]
[1752219455041,1.21536894,117950.0,117940.0,0.1573731]
[1752219455287,0.78529198,117950.0,117940.0,0.1573331]
[1752219456210,0.78529198,117950.0,117940.0,0.0245731]
[1752219456416,0.78529198,117950.0,117940.0,0.15333577]
[1752219456642,0.78529198,117950.0,117940.0,0.15433577]
[1752219457023,1.20231666,117950.0,117940.0,0.15433577]
[1752219459438,1.19274989,117950.0,117940.0,0.15333577]
[1752219459796,1.20729074,117950.0,117940.0,0.15333577]
[1752219459999,1.20729074,117950.0,117940.0,0.02257577]
[1752219460429,1.24759074,117950.0,117940.0,0.02257577]
[1752219461226,1.24759074,117950.0,117940.0,0.02157577]
[1752219461651,1.24759074,117950.0,117940.0,0.02257577]
[1752219461847,1.33302067,117950.0,117940.0,0.02257577]
[1752219462054,1.33302067,117950.0,117940.0,0.02157577]
[1752219463507,1.35890396,117950.0,117940.0,0.02157577]
[1752219464575,1.62038396,117950.0,117940.0,0.02157577]
[1752219465485,1.64581596,117950.0,117940.0,0.02157577]
[1752219467085,1.65429355,117950.0,117940.0,0.02157577]
[1752219467501,1.64581596,117950.0,117940.0,0.02157577]
[1752219468314,1.64581596,117950.0,117940.0,0.01310378]
[1752219468741,1.64581596,117950.0,117940.0,0.00463179]
[1752219469139,0.76863333,117910.0,117900.0,0.17266]
[1752219469428,0.43074333,117910.0,117890.0,0.20665]
[1752219469624,0.01665085,117910.0,117900.0,0.06785699]
[1752219469831,0.44528418,117910.0,117900.0,0.06785699]
[1752219470229,0.44528418,117910.0,117900.0,0.07185699]
[1752219470717,0.44528418,117910.0,117900.0,0.06785699]
[1752219471016,0.44528418,117910.0,117900.0,0.07085699]
[1752219471377,0.79765585,117910.0,117900.0,0.07085699]
[1752219472346,0.79765585,117910.0,117900.0,0.07617699]
[1752219472672,0.79765585,117910.0,117900.0,0.11837699]
[1752219472843,0.79765585,117910.0,117900.0,0.11537699]
[1752219474432,0.79765585,117910.0,117900.0,0.11737699]
[1752219475040,0.781005,117910.0,117900.0,0.11737699]
[1752219475221,0.781005,117910.0,117900.0,0.20280692]
[1752219476283,0.781005,117910.0,117900.0,0.33352692]
[1752219477622,0.781005,117910.0,117900.0,0.24809699]
[1752219478066,0.77107464,117910.0,117900.0,0.24809699]
[1752219479028,0.78151983,117910.0,117900.0,0.24809699]
[1752219479373,0.44549248,117910.0,117900.0,0.24809699]
[1752219479571,0.00641396,117910.0,117900.0,0.33352692]
[1752219479777,0.11292322,117950.0,117920.0,0.0389]
[1752219479982,0.43907852,117930.0,117920.0,0.04215]
[1752219480214,0.45050125,117930.0,117920.0,0.18084276]
[1752219481020,0.45050125,117930.0,117920.0,0.28301202]
[1752219481850,0.43907852,117930.0,117920.0,0.15349202]
[1752219482257,0.43907852,117930.0,117920.0,0.28417202]
[1752219482682,0.43907852,117930.0,117920.0,0.24407202]
[1752219482887,0.42856135,117940.0,117920.0,0.24407202]
[1752219483065,0.42856135,117940.0,117920.0,0.24307202]
[1752219483222,0.42856135,117940.0,117930.0,0.0396]
[1752219483441,0.42856135,117940.0,117930.0,0.06065933]
[1752219484051,0.42856135,117940.0,117930.0,0.19133933]
[1752219484275,0.365429,117960.0,117940.0,0.0396]
[1752219484504,0.77054135,117950.0,117940.0,0.06066779]
[1752219484664,0.34198,117950.0,117940.0,0.19134779]
[1752219484859,0.77054135,117950.0,117940.0,0.05741779]
[1752219485173,0.77054135,117950.0,117940.0,0.18602779]
[1752219486986,0.77054135,117950.0,117940.0,0.18602703]
[1752219489399,0.76037557,117950.0,117940.0,0.18602703]
[1752219489609,0.76037557,117950.0,117940.0,0.18927703]
[1752219490788,0.76037557,117950.0,117940.0,0.19134703]
[1752219491187,0.76037557,117950.0,117940.0,0.19133966]
[1752219493963,0.34,117950.0,117940.0,0.27686959]
[1752219494354,0.43993139,117960.0,117950.0,0.0397]
[1752219494688,0.43993139,117960.0,117950.0,0.06075966]
[1752219495839,0.43993139,117960.0,117950.0,0.06275966]
[1752219496167,0.01137004,117960.0,117950.0,0.06275966]
[1752219496373,0.42856135,117960.0,117950.0,0.06275966]
[1752219497189,0.44013445,117960.0,117950.0,0.06275966]
[1752219498390,0.44013445,117960.0,117950.0,0.04802]
[1752219498654,0.44013445,117960.0,117950.0,0.06373601]
[1752219498872,0.3402,117980.0,117960.0,0.0409]
[1752219499091,0.35474085,117980.0,117970.0,0.1306]
[1752219499298,0.35474085,117980.0,117970.0,0.14631601]
[1752219500272,0.7833022,117980.0,117970.0,0.14631601]
[1752219501082,0.79464158,117980.0,117970.0,0.14631601]
[1752219502453,0.78010073,117980.0,117970.0,0.19285601]
[1752219502659,0.35153938,117980.0,117970.0,0.19285601]
[1752219502862,0.78010073,117980.0,117970.0,0.19285601]
[1752219504169,0.78010073,117980.0,117970.0,0.19085601]
[1752219504398,0.78010073,117980.0,117970.0,0.16721601]